bitfinex/quotes_ETHUSD_20260227
["timestamp","ask_amount","ask_price","bid_price","bid_amount"]
[1772173723638,0.45264497,2033.7,2033.2,1.22958882]
[1772173723803,0.45264497,2033.7,2033.1,1.71378255]
[1772173724326,0.001,2033.2,2033.1,1.71378255]
[1772173724494,0.45264497,2033.5,2033.1,1.71378255]
[1772173725316,0.45264497,2033.5,2033.0,0.46809743]
[1772173725521,0.45264497,2033.5,2032.9,1.23086977]
[1772173725908,0.45264497,2033.4,2032.9,1.23086977]
[1772173726326,0.45264497,2033.4,2032.9,0.0011]
[1772173730521,0.45264497,2033.4,2032.9,0.9533781]
[1772173731709,0.45264497,2033.4,2033.0,0.46809743]
[1772173732615,0.45264497,2033.4,2033.0,1.6977905]
[1772173733717,0.45264497,2033.4,2033.0,1.22969307]
[1772173734037,0.45264497,2033.3,2032.9,0.46919743]
[1772173734339,0.45264497,2033.3,2032.9,1.69896101]
[1772173736239,0.45264497,2033.3,2033.1,0.0011]
[1772173736427,0.001,2033.2,2033.1,0.0011]
[1772173741651,0.45264497,2033.5,2033.1,0.46919743]
[1772173741852,0.45264497,2033.5,2033.2,0.46809743]
[1772173742028,0.45264497,2033.7,2033.2,0.46809743]
[1772173742934,0.45264497,2034.0,2033.5,0.9522781]
[1772173743454,0.45264497,2033.8,2033.3,1.22949946]
[1772173743863,0.45264497,2033.8,2033.3,1.69759689]
[1772173744058,0.45264497,2033.8,2033.4,0.46809743]
[1772173744454,0.45264497,2033.8,2033.3,1.22949946]
[1772173744762,0.45264497,2033.8,2033.3,1.69759689]
[1772173745260,0.45264497,2033.8,2033.4,0.46809743]
[1772173745447,0.45264497,2033.8,2033.4,1.69750974]
[1772173745639,0.001,2034.3,2033.6,0.46809743]
[1772173745640,0.45264497,2034.0,2033.6,0.46809743]
[1772173747964,0.45264497,2034.2,2033.7,2.18156462]
[1772173748636,0.001,2033.8,2033.7,0.46809743]
[1772173749343,0.45264497,2034.1,2033.7,0.46809743]
[1772173750140,0.45264497,2034.1,2033.7,1.69734556]
[1772173750569,0.45264497,2034.1,2033.8,0.46405509]
[1772173751061,0.4972049,2034.3,2033.9,0.48418067]
[1772173751264,0.4972049,2034.3,2033.9,0.94823576]
[1772173751639,0.4962049,2034.5,2034.2,0.46405509]
[1772173751842,0.4962049,2034.7,2034.3,0.94823576]
[1772173752445,0.4962049,2034.7,2034.4,1.22886354]
[1772173753654,0.001,2034.8,2034.5,0.46405509]
[1772173755239,0.4972049,2034.8,2034.4,1.22885736]
[1772173755845,0.4972049,2034.8,2034.4,1.69291245]
[1772173757171,0.4962049,2035.0,2034.7,0.48418067]
[1772173757746,0.4962049,2035.2,2034.7,0.94823576]
[1772173757948,0.001,2035.3,2034.8,0.46405509]
[1772173758271,1.72552965,2035.3,2034.8,0.46405509]
[1772173758473,0.4962049,2035.2,2034.8,0.46405509]
[1772173758682,0.4962049,2035.2,2034.6,2.1769369]
[1772173758891,0.4962049,2035.2,2034.7,0.46405509]
[1772173759796,0.4962049,2035.2,2034.8,0.94823576]
[1772173760770,0.4962049,2035.1,2034.6,2.17697414]
[1772173760972,0.4962049,2035.1,2034.7,0.46405509]
[1772173761290,0.4972049,2035.3,2034.7,0.46405509]
[1772173761505,0.001,2035.3,2035.1,0.46405509]
[1772173761668,0.001,2035.3,2035.0,0.46515509]
[1772173762701,0.001,2035.3,2035.2,0.46405509]
[1772173763486,0.001,2035.3,2035.0,1.69361964]
[1772173763691,0.4972049,2035.3,2035.0,0.0011]
[1772173764090,0.4972049,2035.3,2035.0,1.22959466]
[1772173764303,0.4972049,2035.3,2035.0,0.0011]
[1772173764493,0.4972049,2035.3,2035.0,1.22959577]
[1772173766622,0.001,2035.3,2035.0,1.22959577]
[1772173767122,0.001,2035.3,2035.0,1.69365086]
[1772173767896,0.4972049,2035.3,2035.0,0.0011]
[1772173771018,0.001,2035.3,2035.0,0.46515509]
[1772173772304,0.001,2035.3,2035.0,1.69362738]
[1772173772932,0.4972049,2035.3,2035.0,1.69362738]
[1772173773638,0.001,2035.5,2035.1,0.46405509]
[1772173773849,0.4972049,2035.5,2035.0,1.22957229]
[1772173775330,0.4972049,2035.5,2035.0,0.46515509]
[1772173777440,0.4972049,2035.5,2035.0,1.69360746]
[1772173777645,0.4972049,2035.5,2035.0,1.22955237]
[1772173777834,0.4972049,2035.5,2035.1,0.46405509]
[1772173778543,0.4972049,2035.5,2035.0,0.0011]
[1772173778736,0.4962049,2035.4,2035.0,0.0011]
[1772173781046,0.4962049,2035.4,2035.0,0.49158039]
[1772173781847,0.4962049,2035.4,2035.1,1.22844086]
[1772173782461,0.4962049,2035.4,2035.0,1.72004045]
[1772173782961,0.001,2035.5,2035.1,0.72513768]
[1772173783166,0.001,2035.5,2035.2,0.49048039]
[1772173783943,0.001,2035.5,2035.2,1.71885996]
[1772173784459,0.001,2035.5,2035.2,0.49048039]
[1772173784668,0.001,2035.5,2035.2,1.71885836]
[1772173784864,0.46979193,2035.4,2035.0,0.0011]
[1772173785460,0.001,2035.3,2035.0,0.0011]
[1772173785667,0.47079193,2035.3,2035.0,0.0011]
[1772173796694,1.22841157,2035.2,2035.0,0.0011]
[1772173796894,0.46979193,2035.1,2034.8,0.0011]
[1772173798574,0.47079193,2035.1,2034.8,0.0011]
[1772173798774,1.69923279,2035.1,2035.0,0.0011]
[1772173798985,0.46979193,2035.0,2034.8,0.0011]
[1772173800198,0.001,2035.1,2034.8,0.49158039]
[1772173800498,0.47079193,2035.1,2034.8,0.49158039]
[1772173801480,0.47079193,2035.1,2034.8,1.72019335]
[1772173801870,0.47079193,2035.1,2034.8,0.49158039]
[1772173802068,0.001,2035.1,2034.9,0.49048039]
[1772173802886,0.001,2035.3,2034.9,0.49048039]
[1772173803088,0.001,2035.3,2035.1,0.49048039]
[1772173803597,0.46979193,2035.2,2034.8,0.0011]
[1772173804103,0.46979193,2035.2,2034.8,1.22968408]
[1772173804302,0.001,2035.3,2034.9,0.49048039]
[1772173804504,0.46979193,2035.2,2034.8,0.0011]
[1772173805305,1.69819395,2035.2,2034.8,0.0011]
[1772173805495,0.46979193,2035.1,2034.8,0.0011]
[1772173805694,0.46979193,2035.1,2034.8,0.49158039]
[1772173806779,0.47079193,2035.3,2034.8,0.49158039]
[1772173806979,0.001,2035.3,2034.8,0.49158039]
[1772173807297,0.47079193,2035.3,2034.9,0.49048039]
[1772173808913,0.46979193,2035.2,2034.8,0.0011]
[1772173809879,0.49258146,2035.1,2034.8,0.0011]
[1772173810291,0.49258146,2035.1,2035.0,0.0011]
[1772173810607,0.49358146,2035.1,2035.0,0.0011]
[1772173812919,0.001,2035.1,2035.0,0.49976502]
[1772173813217,0.001,2035.1,2035.0,0.0011]
[1772173815074,0.49358146,2035.1,2034.8,0.0011]
[1772173815201,0.49258146,2034.8,2034.7,0.0011]
[1772173816532,0.49258146,2035.0,2034.7,0.0011]
[1772173817738,0.001,2035.1,2034.7,0.49976502]
[1772173818624,0.001,2035.1,2034.8,1.22862197]
[1772173818842,0.001,2035.1,2034.9,0.49866502]
[1772173820453,0.001,2035.3,2034.9,0.49866502]
[1772173820628,0.001,2035.3,2035.0,1.22850122]
[1772173821444,0.001,2035.3,2035.0,1.72716624]
[1772173821837,0.001,2035.3,2035.0,1.72826624]
[1772173825046,0.001,2035.5,2035.0,1.72826624]
[1772173825256,0.001,2036.1,2035.4,0.5]
[1772173825459,1.22884105,2036.1,2035.6,0.5]
[1772173825626,1.71217906,2036.1,2035.4,0.5]
[1772173825950,0.001,2036.1,2035.5,0.48333801]
[1772173826140,0.001,2036.1,2035.6,0.5]
[1772173826871,1.2288398,2036.1,2035.6,0.5]
[1772173827073,0.001,2036.1,2035.6,1.72813761]
[1772173827369,0.001,2036.1,2035.7,0.5]
[1772173827568,0.001,2036.1,2035.8,0.5]
[1772173828347,0.001,2036.1,2036.0,0.5]
[1772173829340,0.001,2036.1,2036.0,1.72789783]
[1772173829757,0.001,2036.1,2036.0,0.5]
[1772173830557,0.001,2036.1,2036.0,1.72789783]
[1772173830763,0.001,2036.4,2036.1,0.4995]
[1772173831070,0.001,2036.4,2036.3,0.4995]
[1772173831662,0.001,2036.9,2036.3,0.4995]
[1772173832348,0.001,2036.9,2036.5,0.4995]
[1772173832543,0.001,2037.1,2036.5,0.4995]
[1772173832786,0.001,2037.1,2036.6,0.4995]
[1772173832992,0.001,2037.1,2036.8,0.4995]
[1772173833273,0.001,2037.1,2036.9,0.4995]
[1772173833443,0.001,2037.4,2037.0,0.4995]
[1772173834056,0.001,2037.4,2037.1,0.98283801]
[1772173834355,0.001,2037.4,2037.2,0.4995]
[1772173835385,0.001,2037.4,2037.3,0.4995]
[1772173835601,1.22667624,2038.1,2037.3,0.4995]
[1772173835774,3.800591,2038.2,2037.3,0.4995]
[1772173835964,0.001,2038.1,2037.3,0.4995]
[1772173837054,0.001,2038.0,2037.3,0.4995]
[1772173837277,0.001,2037.9,2037.3,0.4995]
[1772173837857,0.001,2037.9,2037.3,1.7266054]
[1772173838058,0.001,2037.9,2037.3,1.72661371]
[1772173838461,0.001,2037.9,2037.3,0.4995]
[1772173838900,0.001,2037.9,2037.3,1.72660242]
[1772173839295,0.001,2037.9,2037.4,0.4995]
[1772173839658,4.90777134,2038.1,2037.4,0.4995]
[1772173839994,0.001,2038.0,2037.4,0.4995]
[1772173841571,0.001,2038.0,2037.5,0.4995]
[1772173841771,1.22663264,2038.1,2037.5,0.4995]
[1772173841981,1.22763264,2038.1,2037.5,0.4995]
[1772173843669,1.22763264,2038.1,2037.2,1.22716015]
[1772173843670,0.001,2038.0,2037.2,1.22716015]
[1772173843877,0.001,2038.0,2037.3,0.4995]
[1772173844499,3.63808674,2038.1,2037.0,0.4995]
[1772173844500,0.001,2037.8,2037.0,0.4995]
[1772173845201,0.001,2037.3,2036.6,0.4995]
[1772173845412,0.001,2037.3,2036.4,0.4995]
[1772173845618,1.22711431,2037.3,2036.4,0.4995]
[1772173846111,1.22711431,2037.3,2037.0,0.0011]
[1772173846276,1.22711431,2037.3,2036.4,0.4995]
[1772173846277,1.22711431,2037.3,2036.7,0.0011]
[1772173848086,2.4114541,2037.2,2036.7,0.0011]
[1772173849397,2.4114541,2037.2,2036.1,0.5]
[1772173849600,1.22711431,2037.3,2036.1,0.5]
[1772173849601,2.4114541,2036.9,2036.1,0.5]
[1772173850796,1.22741555,2036.8,2036.2,0.5]
[1772173851605,4.90925366,2037.0,2036.2,0.5]
[1772173852684,3.63850818,2037.4,2036.4,0.5]
[1772173853301,1.22705408,2037.4,2036.2,0.5]
[1772173854006,2.4114541,2037.1,2036.2,0.5]
[1772173854612,2.4114541,2037.3,2036.2,0.5]
[1772173855277,1.22717455,2037.2,2036.4,0.5]
[1772173857326,4.90799141,2037.5,2036.6,0.5]
[1772173857923,4.90799141,2037.5,2036.6,0.5011]
[1772173858327,0.001,2037.0,2036.6,0.5011]
[1772173859603,0.001,2037.0,2036.7,1.22747581]
[1772173859933,0.001,2037.0,2036.8,0.5]
[1772173860913,4.90799141,2037.5,2036.7,0.4995]
[1772173861236,1.22699386,2037.6,2036.9,0.4995]
[1772173861237,4.90783032,2037.6,2036.9,0.4995]
[1772173862638,0.001,2037.7,2037.1,0.4995]
[1772173862931,0.001,2037.7,2036.8,1.22739262]
[1772173863132,0.001,2037.7,2036.9,0.4995]
[1772173864570,0.001,2037.2,2036.6,0.5006]
[1772173866549,1.22699386,2037.5,2036.6,0.5006]
[1772173866550,0.001,2037.4,2036.7,0.4995]
[1772173866741,1.22699386,2037.5,2036.8,0.4995]
[1772173866929,0.001,2037.4,2036.8,0.4995]
[1772173867127,0.001,2037.2,2036.6,0.5006]
[1772173868838,1.22717455,2037.2,2036.6,0.5006]
[1772173870251,1.22817455,2037.2,2036.6,0.5006]
[1772173870927,0.001,2037.2,2036.8,0.0011]
[1772173872873,0.001,2037.2,2036.8,0.5006]
[1772173873041,0.001,2037.4,2036.8,0.5006]
[1772173873240,4.90969821,2037.5,2036.8,0.5006]
[1772173873543,1.22799386,2037.5,2036.8,0.5006]
[1772173874647,0.001,2037.2,2036.8,0.0011]
[1772173875045,0.48205682,2037.1,2036.5,0.49248582]
[1772173877264,1.22729504,2037.0,2036.5,0.49248582]
[1772173878553,2.89351092,2036.6,2036.3,0.0011]
[1772173878959,0.48205682,2036.6,2036.3,0.0011]
[1772173879162,0.48205682,2036.8,2036.3,0.0011]
[1772173879359,3.63874914,2037.0,2036.4,0.49138582]
[1772173879360,1.70935186,2037.0,2036.4,0.49138582]
[1772173879857,0.48205682,2036.9,2036.4,0.49138582]
[1772173880081,0.48205682,2036.8,2036.3,0.0011]
[1772173880256,0.48205682,2036.8,2036.3,0.49248582]
[1772173880460,0.48205682,2036.8,2036.3,0.0011]
[1772173881376,4.90990327,2036.8,2036.4,0.49138582]
[1772173881579,1.22741555,2036.8,2036.4,0.49138582]
[1772173883682,4.90951624,2036.9,2036.5,0.0011]
[1772173884382,0.001,2036.6,2036.5,0.49248582]
[1772173886567,0.001,2036.6,2036.5,0.0011]
[1772173888392,0.001,2036.6,2036.3,0.49248582]
[1772173889284,0.48305682,2036.6,2036.3,0.0011]
[1772173890505,1.70965318,2036.5,2036.3,0.0011]
[1772173891068,1.70965318,2036.5,2036.1,0.49248582]
[1772173893101,0.001,2036.6,2036.1,0.49248582]
[1772173894105,0.48305682,2036.6,2036.1,0.49248582]
[1772173895306,1.22759636,2036.5,2036.1,0.49248582]
[1772173896199,0.48205682,2036.4,2036.0,0.0011]
[1772173896399,0.48205682,2036.1,2035.3,0.49138582]
[1772173897376,1.22789783,2036.0,2035.3,0.49138582]
[1772173897720,1.70995465,2036.0,2035.8,0.0011]
[1772173897898,1.70995465,2036.0,2035.4,0.49138582]
[1772173898495,0.48205682,2035.9,2035.4,0.49138582]
[1772173899077,0.48205682,2035.9,2035.2,1.91438582]
[1772173899277,0.48205682,2035.9,2035.2,1.423]
[1772173899508,1.22801846,2035.8,2035.3,0.49138582]
[1772173901920,4.91207387,2036.0,2035.3,0.49138582]
[1772173902299,0.48901692,2035.9,2035.3,0.49138582]
[1772173903917,0.48901692,2035.7,2035.2,1.423]
[1772173904236,0.48901692,2035.7,2035.2,1.91341857]
[1772173904719,0.48901692,2035.7,2035.2,1.423]
[1772173905619,0.48901692,2035.7,2035.1,0.49041857]
[1772173905820,0.48901692,2035.7,2035.0,0.0011]
[1772173906127,0.48901692,2035.5,2035.0,0.0011]
[1772173906506,0.48901692,2035.5,2035.0,0.49151857]
[1772173906902,1.22807203,2035.8,2035.0,0.49151857]
[1772173907197,1.71673385,2036.3,2035.4,0.49041857]
[1772173907820,0.48901692,2036.2,2035.4,0.49041857]
[1772173908019,1.22783753,2036.1,2035.5,0.49041857]
[1772173909905,5.40036705,2036.2,2035.5,0.49041857]
[1772173910123,5.40036705,2036.2,2035.6,0.49041857]
[1772173912330,5.40036705,2036.2,2035.6,1.22813488]
[1772173912536,1.22775858,2036.3,2035.7,0.49041857]
[1772173914816,1.7167755,2036.3,2035.7,0.49041857]
[1772173915018,0.48901692,2036.2,2035.4,0.49151857]
[1772173915220,0.48901692,2036.2,2035.5,0.49041857]
[1772173915424,1.22775858,2036.3,2035.5,0.49041857]
[1772173915729,1.7167755,2036.3,2035.5,0.49041857]
[1772173915933,0.48901692,2036.2,2035.5,0.49041857]
[1772173916521,1.22783753,2036.1,2035.5,0.49041857]
[1772173917524,1.71685445,2036.1,2035.5,0.49041857]
[1772173920359,0.48901692,2036.0,2035.4,0.0011]
[1772173920961,1.71697507,2035.9,2035.7,0.0011]
[1772173921256,1.71797507,2035.9,2035.4,0.0011]
[1772173921553,1.71797507,2035.9,2035.5,0.0011]
[1772173921554,0.48901692,2035.8,2035.5,0.0011]
[1772173921754,0.48901692,2035.7,2035.2,0.0011]
[1772173923028,4.91220708,2035.8,2035.2,0.49151857]
[1772173924956,0.001,2035.9,2035.3,0.49041857]
[1772173926666,1.22784123,2036.1,2035.4,0.49041857]
[1772173927560,1.71771713,2036.4,2035.6,0.49041857]
[1772173927857,1.22870021,2036.4,2035.6,0.49041857]
[1772173928060,0.48901692,2036.3,2035.6,0.49041857]
[1772173928956,1.22870021,2036.4,2035.6,0.49041857]
[1772173929666,1.22870021,2036.4,2035.8,0.49041857]
[1772173931263,0.001,2036.4,2035.8,0.49041857]
[1772173932174,0.001,2036.4,2036.0,0.45193612]
[1772173932576,0.49628361,2036.4,2035.5,0.45193612]
[1772173933352,0.001,2036.4,2035.5,0.45193612]
[1772173933873,0.001,2036.4,2035.6,0.02694048]
[1772173934178,0.001,2036.4,2035.9,0.45193612]
[1772173936454,0.001,2036.6,2036.3,0.45193612]
[1772173937573,1.22715499,2037.3,2036.3,0.45193612]
[1772173937782,1.7224386,2037.3,2036.3,0.45193612]
[1772173938476,0.49628361,2037.5,2036.6,0.45193612]
[1772173940091,0.49528361,2037.4,2036.6,0.45193612]
[1772173940596,0.49528361,2037.1,2036.3,1.106]
[1772173940797,0.49528361,2037.1,2036.4,0.45193612]
[1772173942806,1.22729504,2037.0,2036.4,0.45193612]
[1772173942995,1.22729504,2037.0,2036.4,1.67957282]
[1772173943191,1.22729504,2037.0,2036.5,0.45193612]
[1772173944785,1.22729504,2037.0,2036.6,0.45193612]
[1772173945305,1.22727838,2037.1,2036.6,0.45193612]
[1772173945489,1.22722915,2037.2,2036.6,0.45193612]
[1772173945680,1.22722915,2037.2,2036.6,0.45303612]
[1772173946083,0.49528361,2037.1,2036.6,0.45303612]
[1772173947008,1.72257637,2037.1,2036.6,0.45303612]
[1772173947225,1.72257637,2037.1,2036.6,1.6805623]
[1772173947430,1.72257637,2037.1,2036.6,0.45303612]
[1772173948000,0.49528361,2037.0,2036.6,0.0011]
[1772173949228,1.22733565,2037.0,2036.6,0.0011]
[1772173951534,1.72261926,2037.0,2036.6,0.0011]
[1772173951729,0.49528361,2036.9,2036.6,0.0011]
[1772173953121,1.22733565,2037.0,2036.6,0.0011]
[1772173953315,5.40429434,2037.1,2036.6,0.0011]
[1772173953521,5.40429434,2037.1,2036.6,0.45303612]
[1772173954635,5.40413312,2037.2,2036.6,0.45303612]
[1772173955749,5.40413312,2037.2,2036.7,0.45193612]
[1772173957719,1.72245816,2037.2,2036.8,0.0011]
[1772173958023,0.001,2036.9,2036.8,0.0011]
[1772173958225,0.49628361,2036.9,2036.6,0.0011]
[1772173958429,0.49628361,2036.9,2036.4,0.0011]
[1772173959853,1.22741555,2036.8,2036.4,0.48442529]
[1772173962933,0.49823339,2036.9,2036.4,0.48442529]
[1772173963361,0.49823339,2036.9,2036.4,0.0011]
[1772173966450,0.49723339,2036.7,2036.4,0.0011]
[1772173969944,1.22753608,2036.6,2036.4,0.0011]
[1772173973655,1.72476947,2036.6,2036.4,0.0011]
[1772173974869,0.48288577,2036.5,2036.3,1.1071]
[1772173975071,0.98011916,2036.5,2036.3,0.0011]
[1772173975449,1.22765664,2036.4,2036.3,0.0011]
[1772173977959,1.22763848,2036.5,2036.3,0.0011]
[1772173978271,2.20764435,2036.7,2036.3,0.48442529]
[1772173979485,1.71041096,2036.7,2036.3,0.48442529]
[1772173981181,0.48288577,2036.5,2036.3,0.48442529]
[1772173981389,0.98011916,2036.5,2036.3,0.0011]
[1772173982084,0.98011916,2036.5,2036.1,0.48442529]
[1772173982284,1.22765664,2036.4,2036.1,0.48442529]
[1772173982662,2.20775888,2036.5,2036.1,0.48442529]
[1772173982860,2.20875888,2036.5,2036.1,0.48442529]
[1772173983060,2.20875888,2036.5,2036.3,0.0011]
[1772173985611,2.20875888,2036.5,2036.2,0.47938244]
[1772173985910,1.72587311,2036.5,2036.2,0.47938244]
[1772173986402,0.001,2036.5,2036.2,0.47938244]
[1772173986803,1.22860204,2036.5,2036.2,0.47938244]
[1772173987897,2.2087212,2036.5,2036.2,0.47938244]
[1772173989299,2.2087212,2036.5,2035.7,4.91225132]
[1772173989300,0.49723339,2036.2,2035.5,0.04578128]
[1772173991396,0.49511999,2035.6,2035.4,0.0011]
[1772173992392,0.97800576,2035.5,2035.2,0.0011]
[1772173993409,1.2282598,2035.4,2035.2,0.0011]
[1772173994114,1.72335044,2035.5,2035.2,0.0011]
[1772173996097,1.72335044,2035.5,2035.4,0.0011]
[1772173997108,2.20623621,2035.5,2035.2,0.0011]
[1772173997618,1.72335044,2035.5,2035.2,0.0011]
[1772173998218,2.20623621,2035.5,2035.2,0.0011]
[1772173998591,0.49511999,2035.4,2035.2,0.0011]
[1772174000211,1.22832014,2035.3,2035.2,0.0011]
[1772174000617,0.49511999,2035.2,2035.1,0.0011]
[1772174001235,0.49511999,2035.2,2035.0,0.0011]
[1772174002531,1.7235391,2035.2,2035.0,0.0011]
[1772174003034,0.49511999,2035.1,2035.0,0.0011]
[1772174003221,1.22841911,2035.2,2035.0,0.0011]
[1772174003423,2.20635905,2035.3,2035.0,0.0011]
[1772174004436,0.49511999,2035.2,2035.0,0.0011]
[1772174005132,1.72351644,2035.2,2035.0,0.0011]
[1772174006527,0.49511999,2035.1,2035.0,0.0011]
[1772174007067,0.49511999,2035.4,2035.0,0.04798128]
[1772174007249,0.49511999,2035.6,2035.0,0.04798128]
[1772174007748,0.49511999,2035.4,2035.0,0.0011]
[1772174008930,0.49511999,2035.4,2035.2,0.0011]
[1772174009849,1.72344013,2035.3,2035.2,0.0011]
[1772174011144,0.49511999,2035.2,2035.0,0.0011]
[1772174011725,1.22844086,2035.1,2035.0,0.0011]
[1772174011928,1.72354978,2035.2,2035.0,0.0011]
[1772174014344,1.72354978,2035.2,2034.9,0.0011]
[1772174014345,0.49511999,2035.1,2034.9,0.0011]
[1772174015343,0.49511999,2035.5,2034.9,0.04798128]
[1772174017056,1.72337979,2035.4,2034.9,0.04798128]
[1772174019361,0.49511999,2035.3,2034.9,0.04798128]
[1772174019758,0.49511999,2035.3,2034.9,0.0011]
[1772174020567,0.49511999,2035.3,2035.1,0.0011]
[1772174020768,0.001,2035.2,2034.9,0.0011]
[1772174020938,0.48822122,2035.2,2034.9,0.0011]
[1772174021141,0.48722122,2035.1,2034.9,0.0011]
[1772174021350,1.22850122,2035.0,2034.9,0.0011]
[1772174021667,1.71570467,2035.1,2034.9,0.0011]
[1772174029574,0.48722122,2035.0,2034.9,0.0011]
[1772174029777,0.48722122,2034.9,2034.5,0.0011]
[1772174029987,0.48722122,2034.5,2033.6,30.0]
[1772174030187,1.21247927,2034.1,2033.6,0.04798128]
[1772174030394,1.21247927,2034.1,2033.7,0.0011]
[1772174030583,0.48722122,2034.0,2033.7,0.0011]
[1772174032089,0.72525805,2034.1,2033.7,0.04908128]
[1772174032286,1.71624432,2034.2,2033.8,0.0011]
[1772174033803,1.71624432,2034.2,2033.8,0.04908128]
[1772174034095,0.48722122,2034.2,2033.8,0.04908128]
[1772174034491,1.71610889,2034.4,2033.9,0.04908128]
[1772174036371,0.48722122,2034.3,2034.0,0.0011]
[1772174038114,0.48722122,2034.3,2034.0,0.04908128]
[1772174038586,0.48722122,2034.3,2034.1,0.0011]
[1772174039416,1.71614612,2034.3,2034.1,0.0011]
[1772174039792,0.48722122,2034.3,2034.1,0.0011]
[1772174040006,0.48722122,2034.6,2034.3,0.04798128]
[1772174040545,1.71589158,2034.8,2034.4,0.04908128]
[1772174040724,0.48722122,2034.8,2034.4,0.04908128]
[1772174041019,2.44096947,2035.1,2034.3,0.04798128]
[1772174041220,0.48722122,2035.0,2034.3,0.04798128]
[1772174042221,1.2284477,2035.1,2034.5,0.04798128]
[1772174042395,1.71662959,2035.2,2034.5,0.04798128]
[1772174042719,0.48722122,2035.1,2034.6,0.04798128]
[1772174043017,1.22940837,2035.2,2034.6,0.04798128]
[1772174043018,0.001,2035.2,2034.6,0.04798128]
[1772174044429,1.22938529,2035.2,2034.6,0.04798128]
[1772174044604,1.71660651,2035.2,2034.8,0.04798128]
[1772174045429,0.48822122,2035.2,2034.8,0.04798128]
[1772174045633,0.001,2035.0,2034.8,0.04798128]
[1772174046532,0.001,2035.0,2034.7,0.0011]
[1772174046533,0.48822122,2035.0,2034.7,0.0011]
[1772174046825,0.001,2035.0,2034.7,0.04908128]
[1772174048822,0.001,2035.0,2034.8,0.04798128]
[1772174049035,1.22938138,2035.2,2034.9,0.04698128]
[1772174049931,1.70589074,2035.2,2034.9,0.04698128]
[1772174050510,0.47650936,2035.1,2034.7,0.04808128]
[1772174050709,0.47650936,2035.1,2034.7,1.27675948]
[1772174051620,0.001,2035.2,2034.8,0.04698128]
[1772174052140,0.47750936,2035.2,2034.8,0.04698128]
[1772174054330,1.70589542,2035.2,2034.8,0.04698128]
[1772174055010,0.001,2035.2,2034.7,0.0011]
[1772174055208,0.001,2035.2,2034.8,0.04698128]
[1772174056439,0.47750936,2035.2,2034.8,0.04698128]
[1772174057516,1.70589525,2035.2,2034.8,0.04808128]
[1772174057927,0.001,2035.0,2034.8,0.04808128]
[1772174061559,0.001,2035.0,2034.8,1.27669924]
[1772174061930,1.7052338,2035.5,2034.9,0.04598128]
[1772174062136,0.47700936,2035.4,2034.9,0.04598128]
[1772174063456,0.47700936,2035.4,2034.8,1.22971796]
[1772174063861,0.47700936,2035.3,2035.0,0.04598128]
[1772174070241,0.47700936,2035.3,2035.0,0.04708128]
[1772174070744,0.001,2035.1,2035.0,1.2755825]
[1772174072331,0.47700936,2035.5,2035.1,0.04598128]
[1772174072736,0.47700936,2035.5,2035.1,1.27437563]
[1772174074064,0.47700936,2035.5,2035.2,0.52936632]
[1772174074264,0.47700936,2035.9,2035.5,0.04598128]
[1772174074477,1.70497203,2035.9,2035.5,0.04598128]
[1772174074678,4.9113521,2036.1,2035.4,0.48338504]
[1772174074679,0.47700936,2036.0,2035.6,0.04598128]
[1772174074849,0.47700936,2036.0,2035.4,1.7115933]
[1772174075050,0.47700936,2036.0,2035.4,1.22820826]
[1772174075371,0.47700936,2036.0,2035.4,1.27418954]
[1772174076260,0.47700936,2035.9,2035.2,1.22833766]
[1772174076469,0.47700936,2035.9,2035.2,1.27431894]
[1772174076680,0.47700936,2035.9,2035.3,0.04598128]
[1772174078476,0.47700936,2035.7,2035.3,0.04598128]
[1772174079086,0.47700936,2035.7,2035.0,0.48448504]
[1772174079381,1.7114035,2035.8,2035.0,1.27557481]
[1772174079382,0.47700936,2035.5,2035.0,1.27557481]
[1772174079679,0.47700936,2035.5,2035.1,0.04598128]
[1772174079880,0.47700936,2035.7,2035.1,0.04598128]
[1772174080574,0.47700936,2035.6,2035.1,1.27436277]
[1772174080774,0.47700936,2035.6,2035.2,0.04598128]
[1772174082296,0.47700936,2035.6,2035.3,0.0011]
[1772174082597,0.47800936,2035.7,2035.3,1.2753611]
[1772174082778,0.47800936,2035.7,2035.4,0.04598128]
[1772174083374,0.001,2035.7,2035.4,0.04598128]
[1772174083594,0.001,2035.7,2035.5,0.04598128]
[1772174086788,0.001,2035.7,2035.5,1.27418043]
[1772174087676,0.001,2035.7,2035.6,0.04598128]
[1772174087898,0.47750936,2036.2,2035.7,0.04498128]
[1772174088201,0.47750936,2036.2,2035.9,0.04498128]
[1772174090311,0.47750936,2036.1,2035.6,1.71149519]
[1772174090616,0.47750936,2036.1,2035.6,1.75647647]
[1772174090797,0.47750936,2036.1,2035.7,0.04498128]
[1772174092289,0.47750936,2036.1,2035.7,1.27305073]
[1772174093314,0.47750936,2036.2,2035.8,0.04498128]
[1772174093683,0.47850936,2036.3,2035.9,0.04498128]
[1772174094290,0.47850936,2036.3,2035.9,1.27401325]
[1772174094492,0.47850936,2036.3,2036.0,0.04498128]
[1772174095586,0.47850936,2036.3,2035.9,1.22903197]
[1772174095796,0.47850936,2036.3,2035.9,1.27401325]
[1772174096503,0.47850936,2036.3,2036.0,0.04498128]
[1772174097526,0.001,2036.3,2036.0,0.04498128]
[1772174098134,0.001,2036.3,2036.1,0.04498128]
[1772174098443,0.001,2036.3,2036.1,1.27278604]
[1772174099010,0.001,2036.3,2036.2,0.04498128]
[1772174099332,0.001,2036.5,2036.2,0.52836632]
[1772174100321,0.001,2036.5,2036.3,0.04498128]
[1772174100525,0.47750936,2036.8,2036.5,0.04498128]
[1772174101063,0.47750936,2036.7,2036.1,1.22779826]
[1772174101519,0.47750936,2036.6,2036.0,1.27287286]
[1772174101722,0.47750936,2036.6,2036.1,0.04498128]
[1772174102534,0.47750936,2036.6,2036.1,1.27277909]
[1772174103336,0.47750936,2036.6,2036.2,0.04498128]
[1772174103639,0.47750936,2036.6,2036.3,0.04498128]
[1772174107034,0.47750936,2036.6,2036.5,0.0011]
[1772174107644,0.47750936,2036.8,2036.5,0.0011]
[1772174108160,1.22839472,2036.9,2036.5,0.04608128]
[1772174108161,0.47850936,2036.9,2036.5,0.04608128]
[1772174108348,0.001,2036.9,2036.5,0.04608128]
[1772174108523,0.001,2036.9,2036.7,0.04498128]
[1772174109137,0.001,2036.9,2036.7,1.27242565]
[1772174111754,0.47750936,2037.3,2036.9,0.04498128]